fUSD/lending_fUSD_20250301
["ID","MTS","AMOUNT","RATE_DAILY","PERIOD"]
[354986710,1740856277326,-543.67,0.00026849,2]
[354986711,1740856277336,-1050.09,0.00026849,2]
[354986712,1740856277345,-500.0,0.00026849,2]
[354986713,1740856277355,-159.36353856,0.00026849,2]
[354986714,1740856277364,-640.07,0.00026849,2]
[354986715,1740856277374,-500.0,0.00026849,2]
[354986716,1740856277384,-500.0,0.00026849,2]
[354986717,1740856277394,-634.84,0.00026849,2]
[354986718,1740856277404,-556.8,0.00026849,2]
[354986719,1740856277413,-515.04,0.00026849,2]
[354986720,1740856277425,-500.0,0.00026849,2]
[354986721,1740856277437,-3254.27,0.00026849,2]
[354986722,1740856277447,-500.0,0.00026849,2]
[354986723,1740856277456,-500.0,0.00026849,2]
[354986724,1740856277465,-500.0,0.00026849,2]
[354986725,1740856277475,-500.0,0.00026849,2]
[354986726,1740856277485,-500.0,0.00026849,2]
[354986727,1740856277496,-509.27,0.00026849,2]
[354986728,1740856277505,-500.0,0.00026849,2]
[354986729,1740856277518,-500.0,0.00026849,2]
[354986730,1740856277529,-500.0,0.00026849,2]
[354986731,1740856277539,-633.96,0.00026849,2]
[354986732,1740856277549,-784.34,0.00026849,2]
[354986733,1740856277558,-7253.78,0.00026849,2]
[354986734,1740856277568,-949.8,0.00026849,2]
[354986735,1740856277577,-500.0,0.00026849,2]
[354986736,1740856277587,-1342.91,0.00026849,2]
[354986737,1740856277596,-641.56,0.00026849,2]
[354986738,1740856277606,-750.48,0.00026849,2]
[354986739,1740856277615,-500.0,0.00026849,2]
[354986740,1740856277625,-1234.68,0.00026849,2]
[354986741,1740856277635,-511.71,0.00026849,2]
[354986742,1740856277645,-604.81,0.00026849,2]
[354986743,1740856277656,-593.14,0.00026849,2]
[354986744,1740856277667,-1270.91,0.00026849,2]
[354986745,1740856277677,-500.0,0.00026849,2]
[354986746,1740856277687,-500.0,0.00026849,2]
[354986747,1740856277697,-2237.39,0.00026849,2]
[354986748,1740856277706,-586.47,0.00026849,2]
[354986749,1740856277716,-547.79,0.00026849,2]
[354986750,1740856277726,-970.44,0.00026849,2]
[354986751,1740856277735,-500.0,0.00026849,2]
[354986752,1740856277745,-500.0,0.00026849,2]
[354986753,1740856277755,-976.15,0.00026849,2]
[354986754,1740856277765,-500.0,0.00026849,2]
[354986755,1740856277774,-500.0,0.00026849,2]
[354986756,1740856277784,-1242.5,0.00026849,2]
[354986757,1740856277794,-500.0,0.00026849,2]
[354986758,1740856277804,-1437.04,0.00026849,2]
[354986759,1740856277814,-812.04,0.00026849,2]
[354986760,1740856277824,-869.82,0.00026849,2]
[354986761,1740856277834,-806.75,0.00026849,2]
[354986762,1740856277843,-2822.69,0.00026849,2]
[354986763,1740856277853,-873.08,0.00026849,2]
[354986764,1740856277863,-1414.88,0.00026849,2]
[354986765,1740856277873,-500.0,0.00026849,2]
[354986766,1740856277882,-730.6,0.00026849,2]
[354986767,1740856277892,-500.0,0.00026849,2]
[354986768,1740856277904,-500.0,0.00026849,2]
[354986769,1740856277913,-500.0,0.00026849,2]
[354986770,1740856277924,-1890.73,0.00026849,2]
[354986771,1740856277935,-889.77,0.00026849,2]
[354986772,1740856277944,-907.91,0.00026849,2]
[354986773,1740856277954,-1114.97,0.00026849,2]
[354986774,1740856277963,-15462.04,0.00026849,2]
[354986775,1740856277973,-500.0,0.00026849,2]
[354986776,1740856277983,-1466.07,0.00026849,2]
[354986777,1740856277993,-500.0,0.00026849,2]
[354986778,1740856278003,-500.0,0.00026849,2]
[354986779,1740856278014,-939.73,0.00026849,2]
[354986780,1740856278023,-1121.02,0.00026849,2]
[354986781,1740856278033,-1074.69,0.00026849,2]
[354986782,1740856278043,-639.35,0.00026849,2]
[354986783,1740856278053,-504.15,0.00026849,2]
[354986784,1740856278063,-500.0,0.00026849,2]
[354986785,1740856278073,-687.8,0.00026849,2]
[354986786,1740856278082,-500.0,0.00026849,2]
[354986787,1740856278092,-500.0,0.00026849,2]
[354986788,1740856278102,-954.8,0.00026849,2]
[354986789,1740856278111,-500.0,0.00026849,2]
[354986790,1740856278121,-500.0,0.00026849,2]
[354986791,1740856278131,-594.86,0.00026849,2]
[354986792,1740856278141,-909.23,0.00026849,2]
[354986793,1740856278151,-708.75,0.00026849,2]
[354986794,1740856278160,-1993.28,0.00026849,2]
[354986795,1740856278170,-519.54,0.00026849,2]
[354986796,1740856278179,-500.0,0.00026849,2]
[354986797,1740856278189,-838.22,0.00026849,2]
[354986798,1740856278199,-574.63732176,0.00026849,120]
[354986799,1740856278208,-500.0,0.00026849,2]
[354986800,1740856278217,-537.25,0.00026849,2]
[354986801,1740856278227,-755.75,0.00026849,2]
[354986802,1740856278237,-692.09,0.00026849,2]
[354986803,1740856278246,-937.03,0.00026849,2]
[354986804,1740856278256,-2605.69,0.00026849,2]
[354986805,1740856278265,-500.0,0.00026849,2]
[354986806,1740856278274,-564.77,0.00026849,2]
[354986807,1740856278284,-1184.01,0.00026849,2]
[354986808,1740856278293,-551.31,0.00026849,2]
[354986809,1740856278302,-819.54,0.00026849,2]
[354986810,1740856278311,-520.8,0.00026849,2]
[354986811,1740856278321,-12176.22,0.00026849,2]
[354986812,1740856278330,-2100.69,0.00026849,2]
[354986813,1740856278340,-500.0,0.00026849,2]
[354986814,1740856278349,-500.0,0.00026849,2]
[354986815,1740856278359,-817.55,0.00026849,2]
[354986816,1740856278368,-500.0,0.00026849,2]
[354986817,1740856278378,-500.0,0.00026849,2]
[354986818,1740856278388,-1030.34,0.00026849,2]
[354986819,1740856278397,-985.63,0.00026849,2]
[354986820,1740856278407,-500.0,0.00026849,2]
[354986821,1740856278418,-500.0,0.00026849,2]
[354986822,1740856278429,-2166.07,0.00026849,2]
[354986823,1740856278443,-500.0,0.00026849,2]
[354986824,1740856278453,-906.42,0.00026849,2]
[354986825,1740856278462,-500.0,0.00026849,2]
[354986826,1740856278472,-500.0,0.00026849,2]
[354986827,1740856278483,-809.95,0.00026849,2]
[354986828,1740856278492,-982.03,0.00026849,2]
[354986829,1740856278501,-500.0,0.00026849,2]
[354986830,1740856278512,-500.0,0.00026849,2]
[354986831,1740856278521,-1295.8,0.00026849,2]
[354986832,1740856278530,-3221.36,0.00026849,2]
[354986833,1740856278540,-529.08,0.00026849,2]
[354986834,1740856278549,-985.14,0.00026849,2]
[354986835,1740856278558,-500.0,0.00026849,2]
[354986836,1740856278568,-752.49,0.00026849,2]
[354986837,1740856278577,-822.0,0.00026849,2]
[354986838,1740856278587,-933.97,0.00026849,2]
[354986839,1740856278596,-522.68,0.00026849,2]
[354986840,1740856278606,-708.76,0.00026849,2]
[354986841,1740856278617,-524.52928984,0.00026849,2]
[354986842,1740856278627,-500.0,0.00026849,2]
[354986843,1740856278636,-1029.3,0.00026849,2]
[354986844,1740856278647,-518.36,0.00026849,2]
[354986845,1740856278657,-641.6509423,0.00026849,2]
[354986846,1740856278667,-10408.95,0.00026849,2]
[354986847,1740856278676,-691.85,0.00026849,2]
[354986848,1740856278686,-667.94,0.00026849,2]
[354986849,1740856278695,-500.0,0.00026849,2]
[354986850,1740856278705,-500.0,0.00026849,2]
[354986851,1740856278714,-1204.62,0.00026849,2]
[354986852,1740856278725,-500.0,0.00026849,2]
[354986853,1740856278735,-500.0,0.00026849,2]
[354986854,1740856278744,-1522.19,0.00026849,2]
[354986855,1740856278754,-500.0,0.00026849,2]
[354986856,1740856278763,-500.0,0.00026849,2]
[354986857,1740856278773,-307.31651339,0.00026849,2]
[354986858,1740856278783,-500.0,0.00026849,2]
[354986859,1740856278952,-500.0,0.00026849,2]
[354986860,1740856278964,-500.0,0.00026849,2]
[354986861,1740856278974,-500.0,0.00026849,2]
[354986862,1740856278984,-645.19,0.00026849,2]
[354986863,1740856278994,-500.0,0.00026849,2]
[354986864,1740856279004,-500.0,0.00026849,2]
[354986865,1740856279013,-500.0,0.00026849,2]
[354986866,1740856279022,-651.2,0.00026849,2]
[354986867,1740856279032,-1449.79,0.00026849,2]
[354986868,1740856279042,-500.0,0.00026849,2]
[354986869,1740856279051,-2292.81,0.00026849,2]
[354986870,1740856279061,-948.25,0.00026849,2]
[354986871,1740856279071,-1664.15,0.00026849,2]
[354986872,1740856279080,-500.0,0.00026849,2]
[354986873,1740856279090,-500.0,0.00026849,2]
[354986874,1740856279100,-500.0,0.00026849,2]
[354986875,1740856279110,-902.78,0.00026849,2]
[354986876,1740856279120,-563.76,0.00026849,2]
[354986877,1740856279129,-646.84,0.00026849,2]
[354986878,1740856279139,-500.0,0.00026849,2]
[354986879,1740856279149,-618.01,0.00026849,2]
[354986880,1740856279159,-5190.55,0.00026849,2]
[354986881,1740856279169,-960.13,0.00026849,2]
[354986882,1740856279179,-500.0,0.00026849,2]
[354986883,1740856279189,-1609.53,0.00026849,2]
[354986884,1740856279199,-755.39,0.00026849,2]
[354986885,1740856279208,-500.0,0.00026849,2]
[354986886,1740856279218,-500.0,0.00026849,2]
[354986887,1740856279227,-651.25,0.00026849,2]
[354986888,1740856279237,-981.3,0.000269,2]
[354986889,1740856279247,-4010.0,0.00027,2]
[354986890,1740856279257,-644.77,0.00027118,2]
[354986891,1740856279267,-100000.0,0.00027123,7]
[354986892,1740856279277,-500.0,0.00027123,2]
[354986893,1740856279287,-500.0,0.00027123,2]
[354986894,1740856279297,-500.0,0.00027123,2]
[354986895,1740856279307,-500.0,0.00027123,2]
[354986896,1740856279318,-500.0,0.00027123,2]
[354986897,1740856279329,-500.0,0.00027123,2]
[354986898,1740856279339,-500.0,0.00027123,2]
[354986899,1740856279349,-500.0,0.00027123,2]
[354986900,1740856279360,-500.0,0.00027123,2]
[354986901,1740856279369,-500.0,0.00027123,2]
[354986902,1740856279379,-500.0,0.00027123,2]
[354986903,1740856279389,-595.1,0.00027123,2]
[354986904,1740856279399,-500.0,0.00027123,2]
[354986905,1740856279410,-500.0,0.00027123,2]
[354986906,1740856279419,-500.0,0.00027123,2]
[354986907,1740856279432,-688.77,0.00027123,2]
[354986908,1740856279444,-500.0,0.00027123,2]
[354986909,1740856279454,-240.17675499,0.00027123,2]
[354986910,1740856279463,-500.0,0.00027123,2]
[354986911,1740856279475,-500.0,0.00027123,2]
[354986912,1740856279484,-509.36,0.00027123,2]
[354986913,1740856279494,-623.3,0.00027123,2]
[354986914,1740856279504,-500.0,0.00027123,2]
[354986915,1740856279516,-631.28,0.00027123,2]
[354986916,1740856279526,-500.0,0.00027123,2]
[354986917,1740856279536,-500.0,0.00027123,2]
[354986918,1740856279545,-500.0,0.00027123,2]
[354986919,1740856279555,-500.0,0.00027123,2]
[354986920,1740856279565,-632.43,0.00027123,2]
[354986921,1740856279575,-663.0,0.00027123,2]
[354986922,1740856279584,-1421.164967,0.00027123,2]
[354986923,1740856279595,-532.83,0.00027123,2]
[354986924,1740856279606,-500.0,0.00027123,2]
[354986925,1740856279615,-661.03,0.00027123,2]
[354986926,1740856279625,-707.13,0.00027123,2]
[354986927,1740856279634,-1027.29,0.00027123,2]
[354986928,1740856279644,-500.0,0.00027123,2]
[354986929,1740856279654,-500.0,0.00027123,2]
[354986930,1740856279663,-500.0,0.00027123,2]
[354986931,1740856279674,-500.0,0.00027123,2]
[354986932,1740856279684,-1254.33,0.00027123,2]
[354986933,1740856279693,-500.0,0.00027123,2]
[354986934,1740856279703,-500.0,0.00027123,2]
[354986935,1740856279714,-514.84,0.00027123,2]
[354986936,1740856279728,-500.0,0.00027123,2]
[354986937,1740856279740,-500.0,0.00027123,2]
[354986938,1740856279749,-512.94,0.00027123,2]
[354986939,1740856279759,-500.0,0.00027123,2]
[354986940,1740856279769,-523.3,0.00027123,2]
[354986941,1740856279778,-1096.097519,0.00027123,2]
[354986942,1740856279787,-500.0,0.00027123,2]
[354986943,1740856279797,-571.6,0.00027123,2]
[354986944,1740856279807,-500.0,0.00027123,2]
[354986945,1740856279817,-500.0,0.00027123,2]
[354986946,1740856279827,-500.0,0.00027123,2]
[354986947,1740856279836,-704.75,0.00027123,2]
[354986948,1740856279846,-924.57,0.00027123,2]
[354986949,1740856279855,-820.53,0.00027123,2]
[354986950,1740856279864,-503.08,0.00027123,2]
[354986951,1740856279874,-550.72,0.00027123,2]
[354986952,1740856279883,-500.0,0.00027123,2]
[354986953,1740856279893,-500.0,0.00027123,2]
[354986954,1740856279902,-548.07,0.00027123,2]
[354986955,1740856279911,-500.0,0.00027123,2]
[354986956,1740856279921,-779.96,0.00027123,2]
[354986957,1740856279931,-500.0,0.00027123,2]
[354986958,1740856279940,-500.0,0.00027123,2]
[354986959,1740856279950,-500.0,0.00027123,2]
[354986960,1740856279960,-500.0,0.00027123,2]
[354986961,1740856279969,-504.27,0.00027123,2]
[354986962,1740856279979,-583.8,0.00027123,2]
[354986963,1740856279988,-500.0,0.00027123,2]
[354986964,1740856279997,-1171.62,0.00027123,2]
[354986965,1740856280007,-724.92,0.00027123,2]
[354986966,1740856280017,-500.0,0.00027123,2]
[354986967,1740856280026,-783.05,0.00027123,2]
[354986968,1740856280036,-500.0,0.00027123,2]
[354986969,1740856280045,-500.0,0.00027123,2]
[354986970,1740856280054,-500.0,0.00027123,2]
[354986971,1740856280064,-500.0,0.00027123,2]
[354986972,1740856280073,-500.0,0.00027123,2]
[354986973,1740856280082,-837.89,0.00027123,2]
[354986974,1740856280092,-500.0,0.00027123,2]
[354986975,1740856280101,-500.0,0.00027123,2]
[354986976,1740856280111,-523.38,0.00027123,2]
[354986977,1740856280120,-500.0,0.00027123,2]
[354986978,1740856280130,-926.76,0.00027123,2]
[354986979,1740856280139,-581.63,0.00027123,2]
[354986980,1740856280149,-512.3,0.00027123,2]
[354986981,1740856280158,-654.97,0.00027123,2]
[354986982,1740856280167,-2696.96,0.00027123,2]
[354986983,1740856280177,-601.97,0.00027123,2]
[354986984,1740856280186,-500.0,0.00027123,2]
[354986985,1740856280195,-630.48,0.00027123,2]
[354986986,1740856280204,-500.0,0.00027123,2]
[354986987,1740856280213,-500.0,0.00027123,2]
[354986988,1740856280223,-500.0,0.00027123,2]
[354986989,1740856280232,-500.0,0.00027123,2]
[354986990,1740856280241,-500.0,0.00027123,2]
[354986991,1740856280251,-528.28,0.00027123,2]
[354986992,1740856280260,-500.0,0.00027123,2]
[354986993,1740856280270,-698.95,0.00027123,2]
[354986994,1740856280280,-500.0,0.00027123,2]
[354986995,1740856280289,-500.0,0.00027123,2]
[354986996,1740856280299,-500.0,0.00027123,2]
[354986997,1740856280308,-500.0,0.00027123,2]
[354986998,1740856280317,-626.18,0.00027123,2]
[354986999,1740856280327,-500.0,0.00027123,2]
[354987000,1740856280336,-500.0,0.00027123,2]
[354987001,1740856280345,-745.24,0.00027123,2]
[354987002,1740856280362,-500.0,0.00027123,2]
[354987003,1740856280372,-500.0,0.00027123,2]
[354987004,1740856280382,-500.0,0.00027123,2]
[354987005,1740856280392,-500.0,0.00027123,2]
[354987006,1740856280402,-588.75,0.00027123,2]
[354987007,1740856280411,-500.0,0.00027123,2]
[354987008,1740856280422,-504.35,0.00027123,2]
[354987009,1740856280434,-500.0,0.00027123,2]
[354987010,1740856280446,-500.0,0.00027123,2]
[354987011,1740856280455,-500.0,0.00027123,2]
[354987012,1740856280465,-500.0,0.00027123,2]
[354987013,1740856280475,-500.0,0.00027123,2]
[354987014,1740856280484,-976.77,0.00027123,2]
[354987015,1740856280493,-500.0,0.00027123,2]
[354987016,1740856280502,-574.0,0.00027123,2]
[354987017,1740856280512,-1503.56,0.00027123,2]
[354987018,1740856280521,-500.0,0.00027123,2]
[354987019,1740856280531,-791.94,0.00027123,2]
[354987020,1740856280541,-613.14,0.00027123,2]
[354987021,1740856280550,-500.0,0.00027123,2]
[354987022,1740856280560,-655.11,0.00027123,2]
[354987023,1740856280569,-500.0,0.00027123,2]
[354987024,1740856280579,-500.0,0.00027123,2]
[354987025,1740856280588,-484.0,0.00027123,2]
[354987026,1740856280598,-500.0,0.00027123,2]
[354987027,1740856280607,-500.0,0.00027123,2]
[354987028,1740856280617,-669.13,0.00027123,2]
[354987029,1740856280627,-500.0,0.00027123,2]
[354987030,1740856280636,-770.03,0.00027123,2]
[354987031,1740856280645,-500.0,0.00027123,2]
[354987032,1740856280655,-613.68,0.00027123,2]
[354987033,1740856280664,-500.0,0.00027123,2]
[354987034,1740856280674,-899.43,0.00027123,2]
[354987035,1740856280683,-500.0,0.00027123,2]
[354987036,1740856280693,-559.35,0.00027123,2]
[354987037,1740856280702,-865.2,0.00027123,2]
[354987038,1740856280711,-870.71,0.00027123,2]
[354987039,1740856280720,-500.0,0.00027123,2]
[354987040,1740856280729,-543.67,0.00027123,2]
[354987041,1740856280739,-1050.09,0.00027123,2]
[354987042,1740856280748,-500.0,0.00027123,2]
[354987043,1740856280758,-640.07,0.00027123,2]
[354987044,1740856280767,-500.0,0.00027123,2]
[354987045,1740856280777,-500.0,0.00027123,2]
[354987046,1740856280787,-634.84,0.00027123,2]
[354987047,1740856280796,-556.8,0.00027123,2]
[354987048,1740856280805,-515.04,0.00027123,2]
[354987049,1740856280818,-500.0,0.00027123,2]
[354987050,1740856280827,-3254.27,0.00027123,2]
[354987051,1740856280836,-500.0,0.00027123,2]
[354987052,1740856280845,-500.0,0.00027123,2]
[354987053,1740856280855,-500.0,0.00027123,2]
[354987054,1740856280865,-500.0,0.00027123,2]
[354987055,1740856280875,-500.0,0.00027123,2]
[354987056,1740856280884,-509.27,0.00027123,2]
[354987057,1740856280893,-500.0,0.00027123,2]
[354987058,1740856280902,-500.0,0.00027123,2]
[354987059,1740856280911,-500.0,0.00027123,2]
[354987060,1740856280921,-633.96,0.00027123,2]
[354987061,1740856280931,-784.34,0.00027123,2]
[354987062,1740856280940,-7253.78,0.00027123,2]
[354987063,1740856280950,-949.8,0.00027123,2]
[354987064,1740856280959,-500.0,0.00027123,2]
[354987065,1740856280968,-1342.91,0.00027123,2]
[354987066,1740856280977,-750.48,0.00027123,2]
[354987067,1740856280987,-641.56,0.00027123,2]
[354987068,1740856280996,-500.0,0.00027123,2]
[354987069,1740856281006,-1234.68,0.00027123,2]
[354987070,1740856281015,-511.71,0.00027123,2]
[354987071,1740856281025,-604.81,0.00027123,2]
[354987072,1740856281035,-593.14,0.00027123,2]
[354987073,1740856281044,-1270.91,0.00027123,2]
[354987074,1740856281053,-500.0,0.00027123,2]
[354987075,1740856281063,-500.0,0.00027123,2]
[354987076,1740856281072,-2237.39,0.00027123,2]
[354987077,1740856281082,-586.47,0.00027123,2]
[354987078,1740856281091,-547.79,0.00027123,2]
[354987079,1740856281100,-970.44,0.00027123,2]
[354987080,1740856281110,-500.0,0.00027123,2]
[354987081,1740856281119,-500.0,0.00027123,2]
[354987082,1740856281129,-976.15,0.00027123,2]
[354987083,1740856281138,-500.0,0.00027123,2]
[354987084,1740856281148,-500.0,0.00027123,2]
[354987085,1740856281158,-1242.5,0.00027123,2]
[354987086,1740856281167,-500.0,0.00027123,2]
[354987087,1740856281177,-1437.04,0.00027123,2]
[354987088,1740856281187,-812.04,0.00027123,2]
[354987089,1740856281199,-869.82,0.00027123,2]
[354987090,1740856281208,-806.75,0.00027123,2]
[354987091,1740856281218,-2822.69,0.00027123,2]
[354987092,1740856281227,-873.08,0.00027123,2]
[354987093,1740856281237,-1414.88,0.00027123,2]
[354987094,1740856281246,-500.0,0.00027123,2]
[354987095,1740856281256,-730.6,0.00027123,2]
[354987096,1740856281265,-500.0,0.00027123,2]
[354987097,1740856281275,-500.0,0.00027123,2]
[354987098,1740856281285,-500.0,0.00027123,2]
[354987099,1740856281294,-1890.73,0.00027123,2]
[354987100,1740856281304,-889.77,0.00027123,2]
[354987101,1740856281314,-907.91,0.00027123,2]
[354987102,1740856281323,-1114.97,0.00027123,2]
[354987103,1740856281332,-15462.04,0.00027123,2]
[354987104,1740856281342,-500.0,0.00027123,2]
[354987105,1740856281353,-1466.07,0.00027123,2]
[354987106,1740856281362,-500.0,0.00027123,2]
[354987107,1740856281372,-939.73,0.00027123,2]
[354987108,1740856281381,-500.0,0.00027123,2]
[354987109,1740856281392,-1121.02,0.00027123,2]
[354987110,1740856281401,-1074.69,0.00027123,2]
[354987111,1740856281412,-639.35,0.00027123,2]
[354987112,1740856281422,-504.15,0.00027123,2]
[354987113,1740856281437,-500.0,0.00027123,2]
[354987114,1740856281653,-687.8,0.00027123,2]
[354987115,1740856281666,-500.0,0.00027123,2]
[354987116,1740856281678,-500.0,0.00027123,2]
[354987117,1740856281687,-954.8,0.00027123,2]
[354987118,1740856281698,-500.0,0.00027123,2]
[354987119,1740856281707,-500.0,0.00027123,2]
[354987120,1740856281717,-594.86,0.00027123,2]
[354987121,1740856281727,-708.75,0.00027123,2]
[354987122,1740856281736,-909.23,0.00027123,2]
[354987123,1740856281747,-1993.28,0.00027123,2]
[354987124,1740856281756,-519.54,0.00027123,2]
[354987125,1740856281766,-500.0,0.00027123,2]
[354987126,1740856281776,-838.22,0.00027123,2]
[354987127,1740856281785,-500.0,0.00027123,2]
[354987128,1740856281795,-537.25,0.00027123,2]
[354987129,1740856281804,-755.75,0.00027123,2]
[354987130,1740856281814,-692.09,0.00027123,2]
[354987131,1740856281823,-937.03,0.00027123,2]
[354987132,1740856281832,-2605.69,0.00027123,2]
[354987133,1740856281842,-500.0,0.00027123,2]
[354987134,1740856281852,-564.77,0.00027123,2]
[354987135,1740856281861,-1184.01,0.00027123,2]
[354987136,1740856281871,-551.31,0.00027123,2]
[354987137,1740856281880,-520.8,0.00027123,2]
[354987138,1740856281890,-819.54,0.00027123,2]
[354987139,1740856281900,-12176.22,0.00027123,2]
[354987140,1740856281910,-2100.69,0.00027123,2]
[354987141,1740856281919,-500.0,0.00027123,2]
[354987142,1740856281929,-500.0,0.00027123,2]
[354987143,1740856281940,-817.55,0.00027123,2]
[354987144,1740856281955,-500.0,0.00027123,2]
[354987145,1740856281967,-500.0,0.00027123,2]
[354987146,1740856281977,-1030.34,0.00027123,2]
[354987147,1740856281987,-985.63,0.00027123,2]
[354987148,1740856281997,-500.0,0.00027123,2]
[354987149,1740856282007,-500.0,0.00027123,2]
[354987150,1740856282017,-2166.07,0.00027123,2]
[354987151,1740856282027,-500.0,0.00027123,2]
[354987152,1740856282037,-906.42,0.00027123,2]
[354987153,1740856282048,-500.0,0.00027123,2]
[354987154,1740856282058,-500.0,0.00027123,2]
[354987155,1740856282068,-809.95,0.00027123,2]
[354987156,1740856282079,-982.03,0.00027123,2]
[354987157,1740856282088,-500.0,0.00027123,2]
[354987158,1740856282099,-500.0,0.00027123,2]
[354987159,1740856282109,-1295.8,0.00027123,2]
[354987160,1740856282119,-3221.36,0.00027123,2]
[354987161,1740856282130,-529.08,0.00027123,2]
[354987162,1740856282141,-985.14,0.00027123,2]
[354987163,1740856282151,-500.0,0.00027123,2]
[354987164,1740856282161,-752.49,0.00027123,2]
[354987165,1740856282170,-822.0,0.00027123,2]
[354987166,1740856282181,-933.97,0.00027123,2]
[354987167,1740856282191,-522.68,0.00027123,2]
[354987168,1740856282202,-708.76,0.00027123,2]
[354987169,1740856282213,-500.0,0.00027123,2]
[354987170,1740856282223,-1029.3,0.00027123,2]
[354987171,1740856282233,-518.36,0.00027123,2]
[354987172,1740856282244,-10408.95,0.00027123,2]
[354987173,1740856282254,-691.85,0.00027123,2]
[354987174,1740856282264,-667.94,0.00027123,2]
[354987175,1740856282275,-500.0,0.00027123,2]
[354987176,1740856282284,-197.21698473,0.00027123,2]
[354987177,1740856282295,-1204.62,0.00027123,2]
[354987178,1740856282305,-500.0,0.00027123,2]
[354987179,1740856282314,-500.0,0.00027123,2]
[354987180,1740856282324,-1522.19,0.00027123,2]
[354987181,1740856282334,-384.61747404,0.00027123,2]
[354987182,1740856282343,-500.0,0.00027123,2]
[354987183,1740856282354,-500.0,0.00027123,2]
[354987184,1740856282364,-500.0,0.00027123,2]
[354987185,1740856282374,-500.0,0.00027123,2]
[354987186,1740856282384,-500.0,0.00027123,2]
[354987187,1740856282394,-645.19,0.00027123,2]
[354987188,1740856282404,-500.0,0.00027123,2]
[354987189,1740856282414,-500.0,0.00027123,2]
[354987190,1740856282425,-500.0,0.00027123,2]
[354987191,1740856282438,-651.2,0.00027123,2]
[354987192,1740856282449,-1449.79,0.00027123,2]
[354987193,1740856282459,-500.0,0.00027123,2]
[354987194,1740856282474,-2292.81,0.00027123,2]
[354987195,1740856282485,-948.25,0.00027123,2]
[354987196,1740856282494,-1664.15,0.00027123,2]
[354987197,1740856282504,-500.0,0.00027123,2]
[354987198,1740856282516,-500.0,0.00027123,2]
[354987199,1740856282526,-500.0,0.00027123,2]
[354987200,1740856282537,-902.78,0.00027123,2]
[354987201,1740856282547,-563.76,0.00027123,2]
[354987202,1740856282558,-646.84,0.00027123,2]
[354987203,1740856282568,-618.06007751,0.00027123,2]
[354987204,1740856282578,-618.01,0.00027123,2]
[354987205,1740856282587,-5190.55,0.00027123,2]
[354987206,1740856282598,-960.13,0.00027123,2]
[354987207,1740856282608,-500.0,0.00027123,2]
[354987208,1740856282617,-1609.53,0.00027123,2]
[354987209,1740856282627,-755.39,0.00027123,2]